Cogmind - Beta 15 @@@ ROGUE MODE // 2025.06.02 @ 21:07:40 Player: Tenderz Result: Destroyed self via exploding Nuclear Reactor Performance ------------- Evolutions (3) 1500 Regions Visited (4) 800 Robots Destroyed (98) 490 Value Destroyed (2885) 2885 Prototype IDs (12) 240 Alien Tech Used (0) 0 Bonus (705) 705 TOTAL SCORE: 6620 Bonus ------- High Alert Combat Kills 670 Follower Combat Kills 35 Cogmind --------- Core Integrity 0/700 Matter 228/300 Energy 230/290 System Corruption 2% Temperature Cool (0) Movement Rolling (110) Ox1 Location -7/Factory Parts ------- > --- POWER (1) -------- Improved Deuterium Engine > --- PROPULSION (3) --- Armored Wheel Armored Huge Wheel > --- UTILITY (7) ------ Improved Cooling System High-capacity Storage Unit Hardened Medium Armor Plating Improved Light Armor Plating Layered Light Armor Plating Hacking Suite Hacking Suite > --- WEAPON (2) ------- Cooled Pulse Rifle Assault Cannon > --- INVENTORY (20) --- Improved Deuterium Engine Armored Wheel Armored Wheel Armored Huge Wheel High-capacity Matter Pod (0) Structural Scanner Advanced Visual Processing Unit Kinecellerator Weapon Cycler Gatling Laser Assault Cannon Advanced Assault Cannon Advanced Assault Cannon Gauss Cannon Mini Assault Cannon Improved Grenade Launcher Heavy Rocket Launcher Heavy Hammer Axe Peak State ------------ > --- POWER ------------ Improved Deuterium Engine > --- PROPULSION ------- Armored Wheel Armored Huge Wheel > --- UTILITY ---------- Improved Cooling System High-capacity Storage Unit Improved Signal Interpreter Weapon Cycler Improved Light Armor Plating Layered Light Armor Plating Hacking Suite > --- WEAPON ----------- Gatling Laser Cooled Pulse Rifle > --- INVENTORY -------- Improved Deuterium Engine Armored Wheel Armored Wheel Armored Huge Wheel High-capacity Matter Pod Structural Scanner Improved Terrain Scanner Hardened Medium Armor Plating Improved Light Armor Plating Assault Cannon Assault Cannon Assault Cannon Advanced Assault Cannon Gauss Cannon Mini Assault Cannon Rocket Launcher Heavy Rocket Launcher Heavy Hammer Axe [Rating: 51] Favorites ----------- Power Enhanced Nuclear Core Engine Ion Engine Power Core Enhanced Nuclear Core Propulsion Armored Wheel Treads Spiked Treads Leg Aluminum Leg Wheel Armored Wheel Utility High-capacity Storage Unit Device Seismic Detector Storage High-capacity Storage Unit Processor Improved Signal Interpreter Hackware System Shield Protection Improved Light Armor Plating Weapon Shotgun Energy Gun Cooled Pulse Rifle Ballistic Gun Shotgun Ballistic Cannon Assault Cannon Impact Weapon Hammer Slashing Weapon Axe Build | -11 -10 -10 -9 -7 ------- Run | Yrd Mat Sub Rec Fac Slots Evolved 6 | . . . . 6 Power . | . . . . . Propulsion 1 | . . . . 1 Utility 5 | . . . . 5 Weapon . | . . . . . Parts Attached 85 | 9 9 7 10 50 Power 9 | 1 1 1 2 4 Engine 6 | 1 1 1 2 1 Core 3 | . . . . 3 Reactor . | . . . . . Propulsion 18 | 2 3 2 2 9 Treads 2 | . . 2 . . Leg 2 | 2 . . . . Wheel 14 | . 3 . 2 9 Hover . | . . . . . Flight . | . . . . . Utility 36 | 4 2 1 4 25 Device 14 | 3 . 1 . 10 Storage 6 | 1 2 . 1 2 Processor 1 | . . . . 1 Hackware 3 | . . . . 3 Protection 12 | . . . 3 9 Artifact . | . . . . . Weapon 22 | 2 3 3 2 12 Energy Gun 2 | . . . . 2 Energy Cannon . | . . . . . Ballistic Gun 10 | 2 2 3 2 1 Ballistic Cannon 7 | . . . . 7 Launcher . | . . . . . Special Weapon . | . . . . . Impact Weapon 2 | . 1 . . 1 Slashing Weapon 1 | . . . . 1 Piercing Weapon . | . . . . . Special Melee Weapon . | . . . . . Unidentified Prototypes 4 | . 1 . . 3 Parts Lost 23 | . . 2 3 18 Power 2 | . . 1 1 . Propulsion 5 | . . . 1 4 Utility 15 | . . 1 1 13 Weapon 1 | . . . . 1 Highest Loss Streak 4 | . . 1 3 4 To Critical Strikes . | . . . . . Average Backups 15 | 2 10 14 15 18 Power . | . . . . 1 Propulsion 3 | 1 3 5 3 2 Utility 4 | . 1 2 4 5 Weapon 7 | . 5 6 7 9 Tool/Special . | . . . . . Unused Backups 42 | . 6 3 3 30 Power 5 | . . . . 5 Propulsion 9 | . 1 2 . 6 Utility 12 | . . . 1 11 Weapon 16 | . 5 1 2 8 Tool/Special . | . . . . . Average Slot Usage (%) 94 | . 99 99 99 89 Engine 7 | . 13 13 13 2 Core 2 | . . . . 4 Leg 4 | . 24 . . . Wheel 16 | . 3 26 25 16 Device 12 | . 14 13 2 16 Storage 10 | . 14 14 14 7 Processor 1 | . . . . 2 Hackware 3 | . . . . 7 Protection 8 | . . . 11 11 Energy Gun 1 | . . . . 3 Ballistic Gun 12 | . 21 20 26 1 Ballistic Cannon 3 | . . . . 6 Impact Weapon 2 | . 6 7 1 1 Peak Build Rating 51 | 9 14 16 17 51 Average Rating 28 | 6 11 14 15 42 On Entrance 10 | . 7 14 14 17 Naked Turns . | . . . . . Heaviest Build 115 | 13 32 33 60 115 Greatest Support 40 | 20 24 40 40 40 Greatest Overweight (x) 3 | 3 2 1 3 3 Average Overweight (x) 1 | . . . 1 1 Largest Inventory Capacity 20 | 8 15 15 20 20 Average Capacity 17 | 7 12 15 16 20 Most Carried 20 | 6 15 15 19 20 Average Carried 16 | 3 10 14 15 19 Final Capacity 20 | 8 15 15 20 20 Final Carried 20 | 6 15 15 19 20 Class Distribution -------------------- 77% | Mutant 12% | Hacker-Mutant 8% | Commander-Mutant Dominant Class ---------------- Mutant | -10/Materials Mutant | -10/Subcaves Mutant | -9/Recycling Mutant | -7/Factory Resources | -11 -10 -10 -9 -7 ----------- Run | Yrd Mat Sub Rec Fac Matter Collected 4734 | 338 435 200 869 2892 Remotely 52 | 52 . . . . Salvage Created 3522 | 164 328 81 697 2252 Parts 179 | 16 30 11 26 96 Haulers Intercepted 6 | . 2 . . 4 Recyclers Shooed 8 | . 1 . 3 4 Parts Field Recycled . | . . . . . Retrieved Matter . | . . . . . Parts Self-Destructed 7 | . . 7 . . Prevented . | . . . . . Kills | -11 -10 -10 -9 -7 ------- Run | Yrd Mat Sub Rec Fac Combat Hostiles Destroyed 63 | . 9 5 4 45 Guns 36 | . 9 5 4 18 Cannons 26 | . . . . 26 Classes Destroyed 16 | 2 4 2 1 7 Worker 1 | . . . . 1 Builder 2 | . 1 . . 1 Tunneler 5 | 4 . . . 1 Hauler 6 | . 2 . . 4 Recycler 13 | 1 1 . 6 5 Operator 2 | . 1 . . 1 Turret 2 | . . 2 . . Watcher 4 | . . . . 4 Swarmer 20 | . 9 4 . 7 Grunt 21 | . . . . 21 Brawler 1 | . . . . 1 Duelist 3 | . . . . 3 Sentry 10 | . . . 4 6 Hunter 2 | . . . . 2 Programmer 5 | . . . . 5 Subdweller 1 | . . 1 . . Best Kill Streak 6 | 3 3 4 4 6 Combat Bots Only 4 | . 3 4 1 4 Max Kills in Single Turn 2 | 1 2 2 2 2 Gunslinging 1 | . 1 1 . 1 Exploded . | . . . . . Melee . | . . . . . Uniques/NPCs Destroyed . | . . . . . Combat | -11 -10 -10 -9 -7 -------- Run | Yrd Mat Sub Rec Fac Hostile Shots Fired 638 | . 43 104 22 469 Missed 210 | . 9 46 8 147 Hits 428 | . 34 58 14 322 Melee 6 | . . . . 6 Projectile 422 | . 34 58 14 316 AOE 1 | . . 1 . . Critical Strikes 14 | . 2 . 1 11 Part Disruptions 2 | . . . . 2 Damage Taken 5744 | . 275 631 451 4387 Core 924 | . 55 146 . 723 Absorbed by Shields . | . . . . . Redirected to Shielding 44 | . . . . 44 Regen/Repaired (Parts) 43 | . 43 . . . Core Remaining (%) 59 | 100 . . 19 . Volleys Fired 305 | 8 25 20 24 228 Largest 2 | 2 2 2 2 2 Hottest 100 | 40 46 46 46 100 Shots Fired 545 | 16 50 40 45 394 Gun 301 | 16 50 40 45 150 Cannon 244 | . . . . 244 Launcher . | . . . . . Special . | . . . . . Kinetic 425 | 16 50 40 45 274 Thermal 120 | . . . . 120 Explosive . | . . . . . Electromagnetic . | . . . . . Robot Hit Streak 15 | 4 12 7 6 15 Robot Miss Streak 5 | 1 3 4 4 5 Penetration Max . | . . . . . Secondary Targets 5 | . 2 2 . 1 Max Gunslinging Chain 1 | . 1 1 . 1 Shots Hit Robots 363 | 11 38 35 37 242 Core Hits 151 | 5 13 13 22 98 Critical Kills 1 | . 1 . . . Critical Parts Destroyed 3 | . 1 . . 2 Critical Strikes 20 | . 2 . . 18 Burn 6 | . . . . 6 Blast 10 | . . . . 10 Smash 4 | . 2 . . 2 Melee Attacks 78 | . 29 3 7 39 Impact 64 | . 29 3 7 25 Slashing 14 | . . . . 14 Piercing . | . . . . . Sneak Attacks 13 | . 6 . 1 6 Combat Hostiles . | . . . . . Follow-up Attacks . | . . . . . Damage Inflicted 9201 | 144 820 506 649 7082 Guns 3975 | 144 453 506 528 2344 Cannons 3799 | . . . . 3799 Explosions 186 | . . . . 186 Melee 1227 | . 367 . 121 739 Ramming 14 | . . . . 14 Kinetic 5837 | 144 453 506 528 4206 Thermal 1937 | . . . . 1937 Explosive 186 | . . . . 186 Electromagnetic . | . . . . . Impact 957 | . 367 . 121 469 Slashing 270 | . . . . 270 Piercing . | . . . . . Highest Corruption 8 | . . . 8 3 Average Corruption 5 | . . . 8 2 Corruption Purged 4 | . . . . 4 Corruption Blocked . | . . . . . Effects 52 | . . . 40 12 Message Errors 15 | . . . 10 5 Matter Fused 8 | . . . 8 . Heat Flow Errors 5 | . . . 3 2 Energy Discharges 5 | . . . 4 1 Parts Rejected 2 | . . . 1 1 Data Loss (minor) 9 | . . . 7 2 Data Loss (major) 4 | . . . 3 1 Misfires 2 | . . . 2 . Alerts 1 | . . . 1 . Weapon Failures 1 | . . . 1 . Overload Shots 71 | . . . . 71 Effects 4 | . . . . 4 Energy Bleed 2 | . . . . 2 Heat Surge 2 | . . . . 2 Overflow Damage 505 | . 104 . 61 340 Projectiles 27 | . . . . 27 Explosions 26 | . . . . 26 Melee 452 | . 104 . 61 287 Knockbacks 38 | . 1 . 1 36 Impact 3 | . 1 . 1 1 Kinetic 34 | . . . . 34 Secondary 1 | . . . . 1 Self-Inflicted Damage 91 | . . . . 91 Shots 1 | . . . . 1 Rammed 4 | . . . . 4 Targets Rammed 4 | . . . . 4 Kicked . | . . . . . Crushed . | . . . . . Highest Temperature 241 | . . . 209 241 Average Temperature 65 | . . . 61 66 Received Heat Transfer 1785 | . . 282 81 1422 Siege Activations . | . . . . . Martial Activations . | . . . . . Shielding Activations . | . . . . . Robots Disrupted . | . . . . . Combat Hostiles . | . . . . . Robots Corrupted 3 | . . . 2 1 Combat Hostiles . | . . . . . Parts Fried 11 | . 4 . 4 3 Impact Corruptions 12 | . 3 . 3 6 Robots Melted 1 | . . . . 1 Combat Hostiles 1 | . . . . 1 Parts Melted 5 | . . 1 . 4 Heat Transferred 3408 | . . . . 3408 Parts Sabotaged . | . . . . . Parts Stolen . | . . . . . Parts Stripped . | . . . . . Power Chain Reactions . | . . . . . Alert | -11 -10 -10 -9 -7 ------- Run | Yrd Mat Sub Rec Fac Maximum Alert Level 4 | . . . . 4 Low Security (%) 63 | 100 100 . 100 34 Level 1 5 | . . . . 9 Level 2 4 | . . . . 8 Level 3 16 | . . . . 30 Level 4 8 | . . . . 16 Level 5 . | . . . . . High Security . | . . . . . Max Security . | . . . . . Peak Influence 1487 | 10 60 . 51 1487 Initial 100 | . . . 51 100 Average 324 | 1 16 . 5 578 Influence Increases 3056 | 25 301 150 154 2426 Destroy 0b10 Robot/C 1340 | . 180 120 80 960 Destroy 0b10 Robot/NC 180 | 25 25 . 40 90 Destroy Leader 282 | . 34 . . 248 Allied During Kill 13 | . . . . 13 Successful Hack 90 | . 36 . 31 23 Disable Machine 135 | . . . . 135 Anti-Garrison Action 400 | . . . . 400 Destroy Structure 126 | . 11 . 3 112 Advance Influence 100 | . . . . 100 Partial Spotted 15 | . . . . 15 Lose Combat Pursuer 375 | . 15 30 . 330 Influence Decreases 1518 | 25 301 42 262 888 Entered New Map 57 | . . . 57 . Time Decay 1215 | 25 301 32 204 653 Lost Part 191 | . . 10 1 180 Lost Ally 55 | . . . . 55 Squads Dispatched 19 | . 2 . . 17 Investigation 5 | . 1 . . 4 Extermination 6 | . . . . 6 Reinforcement 4 | . 1 . . 3 Assault 4 | . . . . 4 Garrison . | . . . . . Intercept . | . . . . . Searches Triggered . | . . . . . Construction Impeded 1 | . . . . 1 Haulers Reinforced . | . . . . . Active Scanning Responses . | . . . . . Cargo Convoy Interrupts 1 | . . . . 1 Stealth | -11 -10 -10 -9 -7 --------- Run | Yrd Mat Sub Rec Fac Distress Signals 2 | . . . . 2 Communications Jammed . | . . . . . Distress Signals . | . . . . . Times Spotted 126 | . 16 9 4 97 Peak Tracking Total 9 | . 3 6 2 9 Tactical Retreats 15 | . 1 1 . 13 Traps | -11 -10 -10 -9 -7 ------- Run | Yrd Mat Sub Rec Fac Traps Triggered 5 | . 2 2 . 1 Indirectly . | . . . . . Trap Hack Attempts . | . . . . . Triggered . | . . . . . Disarmed . | . . . . . Reprogrammed . | . . . . . Reused . | . . . . . Traps Extracted . | . . . . . Installed . | . . . . . Triggered . | . . . . . Machines | -11 -10 -10 -9 -7 ---------- Run | Yrd Mat Sub Rec Fac Machines Disabled 9 | . . . . 9 Max in Single Turn 2 | . . . . 2 Garrison Access 2 | . . . . 2 Machines Repaired . | . . . . . Machines Dismantled . | . . . . . Machines Sabotaged . | . . . . . Overloaded Fab Kills . | . . . . . Hacking | -11 -10 -10 -9 -7 --------- Run | Yrd Mat Sub Rec Fac Machines Accessed 30 | . 8 . 10 12 Terminals 15 | . 5 . 5 5 Fabricators 3 | . . . . 3 Repair Stations 2 | . 1 . . 1 Recycling Units 8 | . 2 . 5 1 Scanalyzers . | . . . . . Garrison Access 2 | . . . . 2 Total Hacks 93 | . 29 . 36 28 Successful 37 | . 13 . 14 10 Failed 56 | . 16 . 22 18 Catastrophic 18 | . 3 . 4 11 Database Lockouts . | . . . . . Manual 39 | . 12 . 14 13 Terminals 52 | . 22 . 18 12 Fabricators 5 | . . . . 5 Repair Stations 5 | . 2 . . 3 Recycling Units 26 | . 5 . 18 3 Scanalyzers . | . . . . . Garrison Access 5 | . . . . 5 Terminal Hacks 19 | . 10 . 5 4 Part Schematic 1 | . 1 . . . Robot Analysis 2 | . 2 . . . Prototype ID Bank 4 | . 2 . 2 . Branch Access Points 2 | . 1 . 1 . Terminal Index 1 | . . . . 1 Alert Level 1 | . . . 1 . Locate Traps 1 | . . . . 1 Security Status 1 | . 1 . . . Reinforcement Status 1 | . 1 . . . Recall Extermination 1 | . . . . 1 Recall Reinforcements 1 | . 1 . . . Hauler Manifests 2 | . . . 1 1 Zone Layout 1 | . 1 . . . Fabricator Hacks 1 | . . . . 1 Network Status 1 | . . . . 1 Repair Station Hacks 3 | . 2 . . 1 Scan Component 2 | . 1 . . 1 Repair 1 | . 1 . . . Recycling Unit Hacks 4 | . 1 . 3 . Retrieve Components 4 | . 1 . 3 . Scanalyzer . | . . . . . Garrison Access Hacks . | . . . . . Unauthorized Hacks 10 | . . . 6 4 Terminals . | . . . . . Fabricators 2 | . . . . 2 Liberate 2 | . . . . 2 Repair Stations . | . . . . . Recycling Units 6 | . . . 6 . Reject 3 | . . . 3 . Recyclers 2 | . . . 2 . Mask 1 | . . . 1 . Scanalyzers . | . . . . . Garrison Access 2 | . . . . 2 Jam 2 | . . . . 2 Data Cores Recovered 1 | . . . . 1 Used . | . . . . . Hacking Detections 27 | . 8 . 9 10 Full Trace Events 6 | . 2 . 2 2 Feedback Events . | . . . . . Feedback Blocked . | . . . . . Robot Schematics Acquired . | . . . . . Robots Built . | . . . . . Authchips . | . . . . . Time . | . . . . . Total Robot Build Rating . | . . . . . Part Schematics Acquired 1 | . 1 . . . Parts Built . | . . . . . Authchips . | . . . . . Time . | . . . . . Total Part Build Rating . | . . . . . Parts Repaired 1 | . 1 . . . Time 26 | . 26 . . . Parts Recycled . | . . . . . Recycled Matter . | . . . . . Retrieved Matter . | . . . . . Retrieved Components 5 | . 2 . 3 . Parts Scanalyzed . | . . . . . Part Schematics Acquired . | . . . . . Parts Damaged . | . . . . . Bothacking | -11 -10 -10 -9 -7 ------------ Run | Yrd Mat Sub Rec Fac Used RIF Installer . | . . . . . Robots Hacked . | . . . . . Non-combat . | . . . . . Combat . | . . . . . Robot Hacks Applied . | . . . . . Relay Couplers Released . | . . . . . Fabnet Peak Effective % . | . . . . . Robots Rewired 6 | . . . 6 . Allies Hacked 1 | . . . . 1 Hacks Repelled . | . . . . . Allies | -11 -10 -10 -9 -7 -------- Run | Yrd Mat Sub Rec Fac Total Allies 12 | . . . 6 6 Largest Group 6 | . . . 6 5 Highest-Rated Group 48 | . . . 46 48 Highest-Rated Ally 16 | . . . 10 16 Total Orders . | . . . . . Ally Attacks 59 | . . . . 59 Total Damage 517 | . . . . 517 Kills 4 | . . . . 4 Allies Corrupted . | . . . . . Allies Melted . | . . . . . Intel | -11 -10 -10 -9 -7 ------- Run | Yrd Mat Sub Rec Fac Active Infowar (turns) 4803 | 64 1269 621 228 2621 Optics 227 | . . 227 . . Terrain 2011 | 47 . . . 1964 Structural 1046 | . . . . 1046 Traps 839 | . . . . 839 Seismic 2395 | 17 1269 394 228 487 Robot Analysis Total 2 | . 2 . . . Derelict Logs Recovered . | . . . . . Drone Launches . | . . . . . Drone Recoveries . | . . . . . Exploration | -11 -10 -10 -9 -7 ------------- Run | Yrd Mat Sub Rec Fac Turns Passed 6835 | 137 1269 647 1361 3421 Spaces Moved 3961 | 77 590 474 970 1850 Core 13 | 13 . . . . Treads 31 | . . 10 21 . Legs 524 | 64 460 . . . Wheels 3393 | . 130 464 949 1850 Hover . | . . . . . Flight . | . . . . . Fastest Speed 50 | 50 105 105 100 101 Average Speed 120 | 122 161 106 112 114 Slowest Speed 200 | 200 190 160 160 131 Overloaded Moves . | . . . . . Propulsion Burnouts . | . . . . . Robots Hopped . | . . . . . Potential Cave-ins 9 | . . . . 9 Cave-ins Triggered 1 | . . . 1 . Exploration Rate (%) 52 | 5 83 28 96 51 Regions Visited 4 Branch Regions 2 Pre-discovered Areas . | . . . . . Known Exits Taken . | . . . . . Unknown Exits Taken 4 | 1 1 1 1 . Scrap Searched . | . . . . . Spaces Dug 70 | . 11 . 1 58 Terrain Destroyed 135 | . 11 . 1 123 Melee 32 | . 11 . 1 20 Projectile 76 | . . . . 76 AOE 27 | . . . . 27 Terrain Rammed . | . . . . . Walls Destroyed . | . . . . . Machines Disabled . | . . . . . Actions | -11 -10 -10 -9 -7 --------- Run | Yrd Mat Sub Rec Fac Total 5321 | 99 806 567 1173 2676 Wait 540 | . 114 47 64 315 Move 3957 | 76 589 473 969 1850 Hop . | . . . . . Pick Up 95 | 5 19 4 14 53 Fast Attach 40 | 8 7 1 4 20 Attach 22 | . 1 . 2 19 Detach 3 | 1 . . . 2 Swap 144 | 1 7 15 23 98 Drop 79 | . 15 4 12 48 Fire 305 | 8 25 20 24 228 Melee 78 | . 29 3 7 39 Ram 3 | . . . . 3 Kick . | . . . . . Crush 1 | . . . . 1 Escape Stasis . | . . . . . Rewire 54 | . . . 54 . Trap . | . . . . . Miscellaneous . | . . . . . Route ------- -11/Scrapyard -10/Materials (discovered 5 exits: [*Mat x2] / *Min x2 / [*Sub]) -10/Subcaves -9/Recycling -7/Factory (discovered 2 exits: [*Fac] / [*Low]) History --------- Turn | Location | Event 27 | -11/Scrapyard | Discovered new exit (range 15) 138 | -11/Scrapyard | Entered Materials 310 | -10/Materials | Build established: Mutant 467 | -10/Materials | Discovered new exit (range 16) 519 | -10/Materials | Discovered new exit (range 13) 677 | -10/Materials | Discovered new exit (range 8) 725 | -10/Materials | Repaired Ion Engine 789 | -10/Materials | Identified exit to Mines 867 | -10/Materials | Discovered new exit (range 4) 1407 | -10/Materials | Entered Subcaves 1428 | -10/Subcaves | Shifting Twisted Machinery released Mak. Leg 1436 | -10/Subcaves | Shifting Twisted Machinery released Spk. Treads 1456 | -10/Subcaves | A swath of the cavern ceiling suddenly collapsed 1983 | -10/Subcaves | Core integrity fell below 50% 2005 | -10/Subcaves | Discovered new exit (range 9) 2037 | -10/Subcaves | Core integrity fell below 20% 2054 | -10/Subcaves | Entered Recycling 2290 | -9/Recycling | Crushed by falling debris 2321 | -9/Recycling | Lost 3 parts (1p1n1u) 2693 | -9/Recycling | Discovered new exit (range 5) 3415 | -9/Recycling | Entered Factory 3415 | -7/Factory | Accompanied by 5 allies 3415 | -7/Factory | Evolved 6 slots: Propulsion x1, Utility x5 3460 | -7/Factory | Build established: Commander-Mutant 3798 | -7/Factory | Lost 4 allies 3939 | -7/Factory | Discovered new exit (range 12) 4025 | -7/Factory | Lost 4 parts (4u) 4052 | -7/Factory | Build established: Mutant 4072 | -7/Factory | Discovered new exit (range 13) 5015 | -7/Factory | First assault squad dispatched 5136 | -7/Factory | Lost 3 parts (1n1u1w) 5247 | -7/Factory | Core integrity fell below 50% 5297 | -7/Factory | Cargo convoy interrupted 5687 | -7/Factory | Build established: Hacker-Mutant 6261 | -7/Factory | Core integrity fell below 20% 6836 | -7/Factory | Destroyed self via exploding Nuclear Reactor Last Messages --------------- 06755_ Dropped Adv. Terrain Scan Processor. 06755_ Acquired Imp. Grenade Launcher. 06766_ Dropped Arm. Huge Wheel. 06767_ Acquired Arm. Huge Wheel. 06768_ System corrupted: Component data lost. 06774_ R-06 Scavenger collects Adv. Terrain Scan Processor. 06777_ Dropped Assault Cannon. 06778_ Acquired Adv. Visual Processing Unit. 06798_ K-01 Serf cleans the Terminal. 06800_ Connecting with Terminal... >>Index(Terminals) Found 19 terminals. Downloaded coordinate data. 06817_ K-01 Serf cleans the Nuclear Reactor. 06833_ C-30 ARC bursts open, deploying its payload. 06833_ G-50 Soldier unfolds itself. 06833_ G-47 Trooper unfolds itself. 06836_ Nuclear Reactor explodes. 06836_ Destroyed Imp. Heat Sink. Map ----- +----------------------------------------------------+ | ?????????????????????????????????????? | | ?????????????????????????????????????? | | ?????????????????????????????????????? | | ?????????????????????????????????????? | | ?????????????????????????????????????? | | ?????????????????????????????????????? | | ?????????????????????????????????????? | | ?????????????????????????????????????? | | ?????????????????????????????????????? | | ?????????????????????????????????????? | | ?????????????????????????????????????? | | ?????????????????????????????????????? | | ?????????????????????????????????????? | | ?????????????????????????????????????? | | ????????????????????###??????????????? | | ????????????????##### #####?????????? | | ????????????????## #?????????? | | ????????????????## !! #?????????? | | ????????????????# ![ ?????????? | | ????????????????# ##????????? | | ????????????????# ?????????? | | ????????????????# ?????????? | | ????????????????# #?????? ##? | | ????????????????##/ #?????? ##? | | ????????????????## g #?### ##? | | ?????????????##### g @###### ##? | | ?????????????#########g###;### ##? | | ?????????????## # " ### | | ????????????? # + ### | | ?????????????"# #"" T## | | ?????????????"# #"T """" ## | | ?????????????"# #"" """" ### | | ????????????? # # """" ##? | | ?????????????"# # ##? | | ?????????????"# # ##? | | ?????????????"# # ### ##? | | ????????????? ###### #####+########? | | ?????????????####### # ####? | | ??????????????????## + = ##??? | | ??????????????????## # ##??? | | ??????????????????## # ##??? | | ??????????????????## # ##??? | | ??????????????????## # ##??? | | ??????????????????## # ##??? | | ??????????????????## # ##### | | ??????????????????## #####"######### | | ??????????????????## ## ] # | | ???????????????????????## = # | | ??????????????????????? # """ """ # | | ??????????????????????? # """ """ # | +----------------------------------------------------+ Best States ------------- Heat Dissipation 61 Energy Generation 17 Energy Capacity 300 Matter Stores 300 Matter Capacity 300 Sight Range 21 Terrain Scan Range 16 Terrain Scan Density 10 Armor Coverage 600 Core Shielding 20 Weapon Shielding 66 Weapon Cycling 15 Melee Speed Boost 20 Evasion (%) 55 Recoil Reduction 2 Kinecelleration 30 Offensive Hacking 20 Defensive Hacking 10 Authchip Count 4 Item Schematics ----------------- Hcp. Storage Unit | -10/Materials | Hacked Robot Schematics ------------------ None Fabricated ------------ Nothing Repaired ---------- Ion Engine | 28% | -10/Materials Alien Tech Used ----------------- None Achievements -------------- None Challenges ------------ None Game ------ Seed LinkedSigixMagmablaster Manual? 0 Play Time 01:31:00 Cumulative 78.6 hours Start 2025.06.02 @ 19:32:32 End 2025.06.02 @ 21:07:40 Sessions 1 Manual Loads 0 Difficulty Rogue Special Mode None Game No. 52 Rogue 52 Adventurer 0 Explorer 0 Win Type - Total 0 Types 0/0/0/0/0/0/0/0/0/0 Lore% 36 Gallery% 44 Achievement% 41 Wizard Run 0 Options --------- Layout 2 ASCII 0 Keyboard 0 Movement Numpad Keybinds 0 Fullscreen 0 Font 24/Proggy Map View 59x48 Zoom Use 0% Tactical HUD 1 Map Filters NONE Filters NONE Steam 1 RUN: ab129946-1b12-4949-b9c0-aaa47311c527